bitfinex/quotes_ETHUSD_20250518
["timestamp","ask_amount","ask_price","bid_price","bid_amount"]
[1747553117002,3.99091973,2505.7,2505.1,4.7693716]
[1747553117302,3.99091973,2505.7,2505.2,0.87613364]
[1747553119454,3.99094177,2505.7,2505.2,0.87613364]
[1747553119656,3.99121137,2505.6,2505.1,4.76937689]
[1747553120344,3.9909715,2505.7,2505.2,3.99165428]
[1747553120541,7.501,2505.7,2505.3,0.7776]
[1747553120869,12.931,2505.8,2505.4,8.7776]
[1747553121025,8.01709179,2506.6,2505.7,4.76850074]
[1747553121026,7.501,2506.0,2505.7,4.76850074]
[1747553122063,7.501,2506.0,2505.7,0.7776]
[1747553122267,11.491304,2506.1,2505.7,0.7776]
[1747553125071,7.501,2506.1,2505.7,0.7776]
[1747553125453,11.49129374,2506.1,2505.7,0.7776]
[1747553126573,11.49129445,2506.1,2505.7,0.7776]
[1747553132393,7.501,2506.1,2505.7,4.76849968]
[1747553132596,7.501,2506.1,2505.7,5.29528334]
[1747553132887,3.99010658,2506.2,2505.7,5.29528334]
[1747553133186,7.5,2506.1,2505.8,3.99062311]
[1747553136293,7.5,2506.1,2505.7,5.29530496]
[1747553136490,3.98990593,2506.4,2505.9,0.8144]
[1747553136657,3.98998125,2506.3,2505.9,0.8144]
[1747553138361,11.48982467,2506.4,2505.9,4.80495493]
[1747553138689,7.5,2506.3,2505.9,4.80495493]
[1747553139260,7.5,2506.3,2505.9,0.8144]
[1747553139592,7.5,2506.3,2505.9,4.80496154]
[1747553139892,3.99018011,2506.2,2505.9,0.8144]
[1747553141101,7.5,2506.3,2505.9,1.34760609]
[1747553141288,7.5,2506.3,2505.9,5.33814082]
[1747553142903,7.5,2506.3,2505.9,1.34760609]
[1747553145307,7.5,2506.3,2505.9,5.33817077]
[1747553146410,7.5,2506.3,2506.0,3.99037148]
[1747553146579,7.5,2506.3,2505.9,5.33814311]
[1747553146781,7.5,2506.3,2505.9,5.33817927]
[1747553147297,11.49008033,2506.3,2505.9,0.8144]
[1747553147506,7.5,2506.3,2505.9,4.80497606]
[1747553149020,11.4899514,2506.3,2505.9,0.8144]
[1747553149220,7.5,2506.3,2505.9,0.8144]
[1747553149526,11.49000827,2506.3,2505.9,0.8144]
[1747553151226,7.5,2506.3,2505.9,0.8144]
[1747553151623,7.5,2506.3,2505.9,4.80497912]
[1747553151827,7.5,2506.3,2506.0,3.99041086]
[1747553153740,7.5,2506.3,2506.1,3.99025265]
[1747553154041,7.5,2506.3,2506.0,3.99034049]
[1747553158859,7.5,2506.3,2505.9,5.73718288]
[1747553159440,7.5,2506.3,2506.0,3.99041377]
[1747553159763,7.5,2506.3,2506.0,4.96319027]
[1747553163488,7.5,2506.3,2506.1,3.99012683]
[1747553164547,7.5,2506.3,2506.0,0.9727765]
[1747553164548,7.5,2506.3,2506.2,0.37992795]
[1747553167477,3.98971303,2506.5,2506.2,0.37992795]
[1747553167885,3.98971303,2506.5,2506.2,0.37385379]
[1747553168209,3.98971303,2506.5,2506.1,0.47500029]
[1747553168407,4.74210432,2507.3,2506.6,3.98937292]
[1747553168625,0.7537,2507.3,2506.8,3.9890393]
[1747553168786,4.74167503,2507.6,2507.0,3.98882613]
[1747553168977,4.32170141,2507.5,2507.1,0.7752]
[1747553169494,4.32170141,2507.5,2506.9,0.7752]
[1747553169495,3.98828012,2507.4,2506.9,0.7752]
[1747553170076,3.98862072,2507.2,2506.7,3.98929536]
[1747553170277,3.98840766,2507.3,2506.8,3.98913567]
[1747553171026,3.98809015,2507.5,2506.8,3.98913567]
[1747553171027,7.495,2507.5,2506.8,0.47500029]
[1747553171188,8.31987,2507.5,2506.9,4.76404245]
[1747553171506,12.30798862,2507.5,2507.0,3.98881193]
[1747553171716,12.30798862,2507.5,2506.9,4.76415233]
[1747553172210,8.31987,2507.5,2507.0,3.98873885]
[1747553172411,12.30791841,2507.5,2506.9,4.76412463]
[1747553172921,7.495,2507.5,2507.2,3.988403]
[1747553173104,7.495,2507.5,2507.1,3.98859362]
[1747553173606,7.495,2507.5,2507.0,4.76397619]
[1747553173817,11.48309869,2507.5,2507.0,1.07072849]
[1747553174012,11.48309869,2507.5,2507.0,1.54572878]
[1747553174210,3.98824293,2507.4,2507.0,1.25020029]
[1747553175690,3.98824293,2507.4,2507.2,0.5]
[1747553175884,11.48310304,2507.5,2507.2,0.5]
[1747553176431,3.98822391,2507.4,2507.2,0.5]
[1747553176792,3.98822391,2507.4,2507.0,1.25020029]
[1747553177022,3.98822391,2507.4,2507.0,0.7752]
[1747553177320,3.98837783,2507.3,2507.0,0.7752]
[1747553177624,3.98837783,2507.3,2506.8,0.7752]
[1747553177822,3.98837783,2507.3,2506.8,3.24708713]
[1747553178023,3.98837783,2507.3,2506.8,3.54889582]
[1747553178234,3.98859656,2507.2,2506.8,0.7752]
[1747553178822,3.98870379,2507.1,2506.8,0.7752]
[1747553179234,4.74194001,2507.4,2506.8,0.7752]
[1747553179391,4.74200334,2507.4,2506.8,0.7752]
[1747553179599,3.98862532,2507.2,2506.8,0.7752]
[1747553180011,3.988354,2507.3,2506.8,0.7752]
[1747553180434,3.98851994,2507.2,2506.8,0.7752]
[1747553180629,3.98870148,2507.1,2507.0,0.5]
[1747553182034,3.98907428,2506.9,2506.5,0.47500029]
[1747553182208,3.98914951,2506.8,2506.6,0.37796751]
[1747553182407,3.98941894,2506.7,2506.6,0.37796751]
[1747553182845,4.75831894,2506.7,2506.6,0.37796751]
[1747553183156,6.38196778,2506.7,2506.6,0.37796751]
[1747553183927,3.9894678,2506.6,2506.0,3.99039656]
[1747553185261,3.9894678,2506.6,2506.1,0.37815314]
[1747553185449,2.39254884,2506.7,2506.1,4.36840681]
[1747553185650,3.98946891,2506.6,2506.3,0.5]
[1747553185851,5.02658591,2506.6,2506.3,0.5]
[1747553186044,3.98946891,2506.6,2506.3,0.5]
[1747553186759,3.98964084,2506.5,2506.3,0.5]
[1747553189164,11.47954848,2506.6,2506.3,0.5]
[1747553191167,3.98970349,2506.5,2506.3,0.5]
[1747553193792,0.7817,2506.9,2506.3,0.5]
[1747553194089,11.47934357,2506.7,2506.3,0.5]
[1747553195394,11.47934357,2506.7,2506.4,0.37817669]
[1747553196092,3.98961433,2506.6,2506.4,0.37817669]
[1747553196295,3.98962696,2506.5,2506.4,0.37817669]
[1747553196494,3.98955972,2506.6,2506.4,0.37817669]
[1747553196680,3.98955972,2506.6,2506.3,0.5]
[1747553197799,3.98968909,2506.5,2506.3,0.5]
[1747553199608,6.33722555,2506.6,2506.3,0.5]
[1747553200394,3.98970626,2506.5,2506.3,0.5]
[1747553200594,3.98970626,2506.5,2506.0,4.74129074]
[1747553201906,3.98970626,2506.5,2506.1,0.37841704]
[1747553202107,4.79034095,2506.6,2506.1,0.37841704]
[1747553203009,3.98964383,2506.5,2506.1,0.37841704]
[1747553203305,3.98964383,2506.5,2506.2,0.37841704]
[1747553204687,3.98964383,2506.5,2506.1,0.37841704]
[1747553205003,4.79034332,2506.6,2506.1,4.36867852]
[1747553205552,0.8008,2506.6,2506.2,3.99009928]
[1747553205704,11.47939417,2506.7,2506.3,0.5]
[1747553206026,3.98950695,2506.6,2506.3,0.37841704]
[1747553207219,3.98950695,2506.6,2506.2,0.37841704]
[1747553208846,3.98950695,2506.6,2506.1,3.99017642]
[1747553208847,3.98950695,2506.6,2506.3,0.37841704]
[1747553209147,3.9894678,2506.6,2506.3,0.37841704]
[1747553209343,7.49,2506.7,2506.4,0.8313]
[1747553210108,7.49,2506.7,2506.4,4.82106886]
[1747553210305,12.921,2507.0,2506.4,4.82106886]
[1747553210306,12.921,2507.0,2506.5,3.98955889]
[1747553210645,12.921,2507.0,2506.7,0.8313]
[1747553210847,12.921,2507.0,2506.7,4.82059159]
[1747553212327,12.921,2507.0,2506.8,3.98914951]
[1747553212944,12.921,2507.0,2506.9,0.37841704]
[1747553213145,3.98835932,2507.3,2506.9,0.37841704]
[1747553213458,7.487,2507.2,2506.9,0.37841704]
[1747553214561,7.487,2507.2,2507.0,0.37841704]
[1747553214758,3.98867217,2507.1,2507.0,0.37841704]
[1747553214940,4.78037217,2507.1,2507.0,0.37841704]
[1747553216026,3.9888597,2507.0,2506.8,0.37841704]
[1747553216350,4.78045232,2507.1,2506.8,0.37841704]
[1747553216762,3.98886483,2507.0,2506.8,0.37841704]
[1747553218764,4.78045572,2507.1,2506.8,0.37841704]
[1747553219357,4.78045572,2507.1,2506.6,0.37841704]
[1747553219551,3.98883406,2507.0,2506.6,0.37841704]
[1747553219841,3.98883406,2507.0,2506.7,0.5]
[1747553220469,4.78043358,2507.1,2506.7,0.5]
[1747553221265,3.98873358,2507.1,2506.8,0.37841704]
[1747553221461,11.47556516,2507.2,2506.8,0.37841704]
[1747553221643,11.47556516,2507.2,2506.8,1.69348879]
[1747553222262,11.47556516,2507.2,2506.8,1.20671704]
[1747553222977,11.47556516,2507.2,2506.9,0.37841704]
[1747553223475,3.98870413,2507.1,2506.9,0.37841704]
[1747553223843,11.47559433,2507.2,2506.9,0.37841704]
[1747553224564,11.47559433,2507.2,2506.8,0.37841704]
[1747553225071,3.98859433,2507.2,2506.9,0.7712]
[1747553225281,11.47459433,2507.2,2506.9,0.7712]
[1747553225975,11.47453009,2507.2,2507.0,0.37841704]
[1747553226477,7.486,2507.2,2507.0,0.37841704]
[1747553228001,11.47451479,2507.2,2507.0,0.37841704]
[1747553229064,3.98867217,2507.1,2507.0,0.37841704]
[1747553230001,3.98891731,2507.0,2506.8,0.37841704]
[1747553231007,3.98875647,2507.1,2506.8,0.37841704]
[1747553231171,3.98867217,2507.1,2506.8,0.37841704]
[1747553231373,3.98867217,2507.1,2506.7,0.37841704]
[1747553232208,3.9889068,2507.0,2506.7,0.37841704]
[1747553232506,3.98874135,2507.1,2506.7,0.37841704]
[1747553233004,3.98874135,2507.1,2506.8,0.37841704]
[1747553233203,11.47460803,2507.2,2506.8,0.37841704]
[1747553233895,11.47460803,2507.2,2506.9,0.37841704]
[1747553234082,13.84813848,2507.2,2506.9,0.37841704]
[1747553234606,3.98871371,2507.1,2506.9,0.37841704]
[1747553235008,3.98883127,2507.0,2506.9,0.37841704]
[1747553235206,3.9887335,2507.1,2506.7,0.37841704]
[1747553237011,3.9887335,2507.1,2506.8,0.37841704]
[1747553238694,3.98888061,2507.0,2506.8,0.37841704]
[1747553239089,3.98899038,2506.9,2506.8,0.37841704]
[1747553239311,3.98899038,2506.9,2506.7,0.47500029]
[1747553239728,3.98914951,2506.8,2506.7,0.47500029]
[1747553240907,3.98914951,2506.8,2506.7,0.85474261]
[1747553241985,4.75354951,2506.8,2506.7,0.85474261]
[1747553242186,6.53063964,2506.8,2506.7,0.85474261]
[1747553242427,7.08063964,2506.8,2506.7,0.85474261]
[1747553242952,3.98949413,2506.6,2506.3,0.47500029]
[1747553243114,7.482,2506.5,2506.3,0.47500029]
[1747553244143,7.482,2506.5,2506.4,0.37950087]
[1747553245646,12.61876621,2506.5,2506.4,0.37950087]
[1747553246154,13.43596621,2506.5,2506.4,0.37950087]
[1747553246457,13.98596621,2506.5,2506.4,0.37950087]
[1747553247246,3.98997973,2506.3,2506.0,0.47500029]
[1747553247649,11.47186698,2506.4,2506.0,0.47500029]
[1747553247848,3.98998502,2506.3,2506.0,0.47500029]
[1747553248035,3.98998502,2506.3,2506.1,0.37936779]
[1747553248670,3.98998502,2506.3,2506.2,0.37936779]
[1747553252372,3.98998502,2506.3,2505.8,5.28082153]
[1747553252549,3.98998502,2506.3,2505.8,6.30060355]
[1747553252739,3.98998502,2506.3,2506.0,0.5]
[1747553253238,11.47187064,2506.4,2506.1,0.37905837]
[1747553253463,0.8172,2506.5,2506.1,0.37905837]
[1747553253672,7.484,2506.3,2506.1,1.16495837]
[1747553253972,7.484,2506.3,2506.2,0.37905837]
[1747553254761,3.98970463,2506.5,2506.1,0.7859]
[1747553255069,7.484,2506.4,2506.1,0.7859]
[1747553255279,7.484,2506.3,2506.1,0.7859]
[1747553255674,7.484,2506.3,2506.2,0.37895274]
[1747553255858,3.98979591,2506.4,2506.1,0.7859]
[1747553256042,7.484,2506.3,2506.1,0.7859]
[1747553259579,3.98967211,2506.5,2506.1,0.7859]
[1747553259776,7.484,2506.3,2506.1,0.7859]
[1747553262297,0.7632,2506.7,2506.1,1.71257793]
[1747553262466,4.75259723,2506.7,2506.2,3.99008022]
[1747553262667,18.95448885,2506.6,2506.1,0.7859]
[1747553262990,14.965,2506.6,2506.2,3.99000914]
[1747553264076,3.98940268,2506.7,2506.2,3.99000914]
[1747553264275,12.922,2506.8,2506.3,0.811]
[1747553264609,24.39517276,2506.8,2506.3,4.80085842]
[1747553265099,24.39517276,2506.8,2506.3,0.811]
[1747553265967,3.98949093,2506.6,2506.3,0.811]
[1747553266769,3.98949093,2506.6,2506.1,0.811]
[1747553266969,3.98969343,2506.5,2506.1,0.811]
[1747553267197,3.9895358,2506.6,2506.1,5.33131127]
[1747553267390,0.8023,2506.7,2506.1,5.33131127]
[1747553267697,3.98947612,2506.6,2506.1,5.33131127]
[1747553268502,4.79167835,2506.7,2506.1,5.33131127]
[1747553269878,4.79167835,2506.7,2506.2,3.9900535]
[1747553270400,3.98937835,2506.7,2506.2,4.97218998]
[1747553271603,7.484,2506.6,2506.2,4.97218998]
[1747553272615,16.91122596,2506.8,2506.2,4.97218998]
[1747553272911,7.479,2506.7,2506.3,3.98989724]
[1747553273121,7.479,2506.7,2506.4,0.8308]
[1747553273417,7.479,2506.7,2506.4,4.8204582]
[1747553273819,20.401,2506.8,2506.4,4.8204582]
[1747553275419,20.401,2506.8,2506.4,0.8308]
[1747553277112,24.39017701,2506.8,2506.4,0.8308]
[1747553279116,24.39017701,2506.8,2506.5,0.37984383]
[1747553280132,3.98935351,2506.7,2506.5,0.37984383]
[1747553280414,3.98935351,2506.7,2506.6,0.37984383]
[1747553281708,24.39022694,2506.8,2506.6,0.37984383]
[1747553281894,28.46595395,2506.8,2506.6,0.37984383]
[1747553282216,28.46595395,2506.8,2506.7,0.37984383]
[1747553282917,3.98931636,2506.7,2506.5,0.37984383]
[1747553283313,3.98931636,2506.7,2506.6,0.37984383]
[1747553288229,3.98947044,2506.6,2506.2,0.7542]
[1747553289717,3.98938004,2506.7,2506.2,0.7542]
[1747553289917,3.98938004,2506.7,2506.2,4.74427481]
[1747553290799,3.98949998,2506.6,2506.2,0.7542]
[1747553291117,12.27517635,2506.8,2506.2,0.7542]
[1747553291118,3.98938889,2506.7,2506.2,4.74428185]
[1747553292628,14.954,2506.8,2506.4,3.98968458]
[1747553292927,7.478,2506.8,2506.4,3.98968458]
[1747553294735,7.478,2506.8,2506.6,0.5]
[1747553295344,3.98906955,2506.9,2506.6,0.5]
[1747553295831,7.478,2506.8,2506.6,0.5]
[1747553296049,8.01709179,2507.0,2506.6,4.48945497]
[1747553296247,7.478,2506.9,2506.6,1.3049]
[1747553297248,7.478,2506.9,2506.6,0.8049]
[1747553297458,11.46702158,2506.9,2506.4,4.79460099]
[1747553297604,7.478,2506.9,2506.4,4.79460099]
[1747553298246,11.46706436,2506.9,2506.4,0.8049]
[1747553298431,3.98924536,2506.8,2506.4,0.8049]
[1747553299969,3.98924536,2506.8,2506.6,0.5]
[1747553300637,3.98924536,2506.8,2506.4,0.8049]
[1747553302566,3.98924536,2506.8,2506.5,0.38052548]
[1747553303566,3.98932186,2506.7,2506.5,0.38052548]
[1747553303765,3.98922474,2506.8,2506.6,0.38052548]
[1747553304941,7.473,2506.8,2506.7,0.38052548]
[1747553307887,7.473,2506.8,2506.7,1.13482548]
[1747553308083,7.473,2506.8,2506.7,1.69481947]
[1747553308237,3.98874608,2507.1,2506.7,1.69481947]
[1747553308439,7.473,2506.9,2506.7,1.13482548]
[1747553308986,7.473,2506.9,2506.8,0.38052548]
[1747553311174,7.473,2507.0,2506.8,0.38052548]
[1747553311677,7.473,2507.0,2506.7,0.7543]
[1747553312243,3.98874608,2507.1,2506.7,0.7543]
[1747553312468,11.46174608,2507.1,2506.7,0.7543]
[1747553318071,7.473,2507.1,2506.8,3.98914501]
[1747553318458,3.98843715,2507.3,2506.8,3.98914501]
[1747553318658,7.473,2507.2,2506.8,3.98914501]
[1747553318883,12.00534539,2507.4,2506.9,3.98897572]
[1747553319080,7.473,2507.2,2506.9,3.98897572]
[1747553319393,7.473,2507.2,2507.0,0.8142]
[1747553320588,3.9883816,2507.3,2507.0,0.8142]
[1747553320894,7.473,2507.2,2507.0,0.8142]
[1747553321457,8.01709179,2507.4,2507.0,0.8142]
[1747553321788,7.473,2507.3,2507.0,4.80302342]
[1747553321990,7.473,2507.3,2507.0,5.68223974]
[1747553322294,12.00535861,2507.4,2507.0,1.69341632]
[1747553322457,7.473,2507.3,2507.0,1.69341632]
[1747553323605,7.473,2507.3,2507.0,5.68222805]
[1747553323899,7.473,2507.4,2507.0,5.68222805]
[1747553325299,20.393,2507.6,2507.2,3.98847825]
[1747553325963,20.393,2507.6,2507.1,5.33902926]
[1747553326160,24.38090177,2507.6,2507.1,5.33902926]
[1747553326369,24.38090177,2507.6,2507.1,1.35042281]
[1747553326574,24.38090177,2507.6,2507.1,5.33909248]
[1747553326775,24.38090177,2507.6,2507.1,1.35042281]
[1747553327568,24.38090177,2507.6,2507.1,5.33908394]
[1747553329065,24.38090177,2507.6,2507.1,1.35042281]
[1747553329302,3.98804438,2507.5,2507.1,0.7822]
[1747553329871,24.38095615,2507.6,2507.1,0.7822]
[1747553331595,24.38095615,2507.6,2507.1,4.77083338]
[1747553332190,24.38095615,2507.6,2507.1,0.7822]
[1747553335013,20.393,2507.6,2507.1,0.7822]
[1747553335223,3.98823101,2507.4,2507.1,0.7822]
[1747553335910,3.98811938,2507.5,2507.1,0.7822]
[1747553336922,3.98827038,2507.4,2507.1,0.7822]
[1747553337122,3.98837989,2507.3,2507.1,0.7822]
[1747553337293,3.98846907,2507.3,2507.1,0.7822]
[1747553337498,3.98846907,2507.3,2506.9,0.7999]
[1747553338384,3.98827091,2507.4,2506.9,0.7999]
[1747553339093,3.98827091,2507.4,2506.9,5.66668142]
[1747553339929,3.98827091,2507.4,2506.9,1.67771208]
[1747553340460,0.8129,2507.5,2506.9,0.7999]
[1747553340594,3.9887774,2507.1,2506.9,0.7999]
[1747553340922,3.98895265,2507.0,2506.6,0.7999]
[1747553342014,3.98900892,2506.9,2506.6,0.7999]
[1747553343733,0.8129,2506.9,2506.2,0.7999]
[1747553343931,3.98956502,2506.6,2506.2,0.7999]
[1747553345897,7.466,2506.6,2506.2,0.7999]
[1747553346631,7.466,2506.6,2506.4,0.5]
[1747553357571,12.25284631,2506.6,2506.4,0.5]
[1747553357773,12.25284631,2506.6,2506.1,3.99026177]
[1747553358153,12.25284631,2506.6,2506.2,0.37948234]
[1747553358580,3.989634,2506.5,2506.2,0.37948234]
[1747553358882,8.2633,2506.6,2506.2,0.37948234]
[1747553359038,12.25284474,2506.6,2506.2,0.37948234]
[1747553360090,12.25284474,2506.6,2506.3,0.37948234]
[1747553360955,12.25284474,2506.6,2506.4,0.37948234]
[1747553361375,4.53962696,2506.5,2506.4,0.37948234]
[1747553361561,3.98979184,2506.4,2506.1,0.47431233]
[1747553362536,3.98979184,2506.4,2506.2,0.37954802]
[1747553363374,3.98979184,2506.4,2506.3,0.37954802]
[1747553369487,7.466,2506.6,2506.3,0.37954802]
[1747553369682,4.78012828,2506.8,2506.3,4.36936239]
[1747553369882,7.462,2506.5,2506.3,4.36936239]
[1747553370286,7.462,2506.5,2506.3,0.37954802]
[1747553370676,7.462,2506.5,2506.2,4.79992132]
[1747553370677,7.462,2506.5,2506.4,0.37954802]
[1747553371183,7.462,2506.5,2506.3,0.37954802]
[1747553371971,7.462,2506.5,2506.4,0.37954802]
[1747553372603,7.462,2506.5,2506.4,5.17908793]
[1747553372897,7.462,2506.9,2506.6,0.8099]
[1747553373405,20.384,2507.0,2506.7,3.98927163]
[1747553373899,20.384,2507.0,2506.8,0.37954802]
[1747553374375,20.384,2507.0,2506.8,4.36869085]
[1747553374574,4.77901099,2507.5,2507.0,0.8099]
[1747553374812,12.923,2507.8,2507.0,0.8099]
[1747553374813,7.462,2507.4,2507.0,4.79864616]
[1747553375098,7.462,2507.4,2507.1,0.37954802]
[1747553375476,7.462,2507.4,2507.2,0.37954802]
[1747553376298,7.462,2507.4,2507.3,0.37954802]
[1747553378911,7.462,2507.4,2507.0,4.79867952]
[1747553379210,7.462,2507.4,2507.0,5.75939979]
[1747553379379,7.462,2507.4,2507.1,3.9886662]
[1747553379580,7.462,2507.4,2507.0,0.8099]
[1747553380019,11.4501954,2507.4,2507.0,0.8099]
[1747553380381,7.462,2507.4,2507.0,0.8099]
[1747553380782,11.45020394,2507.4,2507.0,0.8099]
[1747553381001,13.73981326,2507.4,2507.0,0.8099]
[1747553381215,13.73981326,2507.4,2506.9,3.98894416]
[1747553381216,4.77931435,2507.3,2506.8,3.98906949]
[1747553381516,11.45027596,2507.4,2506.8,3.98906949]
[1747553382118,11.45027596,2507.4,2506.9,3.98898908]
[1747553382515,0.7909,2507.5,2506.9,0.8099]
[1747553382820,14.918,2507.4,2507.1,3.98859737]
[1747553382993,14.918,2507.4,2507.0,3.9887738]
[1747553384285,14.918,2507.4,2507.0,4.89689248]
[1747553384485,14.918,2507.4,2507.0,0.90811868]
[1747553384780,14.918,2507.4,2507.0,3.98881776]
[1747553385216,4.77867751,2507.7,2507.0,3.98881776]
[1747553385421,3.98806442,2507.5,2507.0,3.98881776]
[1747553386124,3.98806442,2507.5,2506.9,1.10342467]
[1747553386125,3.98806442,2507.5,2506.9,5.09234194]
[1747553386498,3.98837542,2507.3,2506.9,0.8099]
[1747553387291,3.98859514,2507.2,2506.6,0.7838]
[1747553387493,3.9889322,2507.0,2506.6,0.7838]
[1747553388127,3.9889322,2507.0,2506.4,5.72102513]
[1747553388338,3.98924396,2506.8,2506.4,1.73130097]
[1747553389547,3.98924396,2506.8,2506.3,3.98993134]
[1747553389750,4.79994396,2506.8,2506.3,3.98993134]
[1747553389901,3.98937344,2506.7,2506.2,0.8144]
[1747553390102,7.46,2506.6,2506.2,4.8044963]
[1747553390401,11.44947054,2506.6,2506.2,8.0]
[1747553390850,11.44947054,2506.6,2506.0,0.8144]
[1747553390851,3.98974366,2506.5,2506.0,0.8144]
[1747553391131,3.98974366,2506.5,2506.0,4.80481176]
[1747553391499,4.80059093,2506.4,2505.9,3.99055346]
[1747553391722,4.80059093,2506.4,2505.9,5.6701384]
[1747553392328,3.98999713,2506.3,2505.8,12.8051298]
[1747553392632,0.8107,2506.4,2505.9,3.99048144]
[1747553392803,4.80051194,2506.4,2505.8,4.80506754]
[1747553393525,0.8107,2506.4,2505.9,3.99044144]
[1747553393846,4.80050008,2506.4,2505.9,3.99044144]
[1747553395149,0.8107,2506.4,2506.0,3.99039226]
[1747553395649,0.8107,2506.4,2505.8,4.80512949]
[1747553395650,0.8107,2506.4,2505.9,3.99058222]
[1747553395849,0.8107,2506.4,2505.9,0.87957117]
[1747553396146,0.8107,2506.4,2505.9,4.87003711]
[1747553396949,7.456,2506.3,2506.0,3.99036339]
[1747553397259,7.456,2506.2,2505.9,4.87007641]
[1747553397744,7.456,2506.2,2505.9,4.87007425]
[1747553398949,4.80049607,2506.4,2505.9,4.87007425]
[1747553399138,7.456,2506.2,2505.9,4.87007425]
[1747553399538,7.457,2506.2,2506.0,3.99035466]
[1747553400113,7.457,2506.2,2505.9,4.87009867]
[1747553400311,7.457,2506.2,2505.9,3.9905275]
[1747553400550,7.457,2506.2,2505.7,4.75824326]
[1747553400551,7.457,2506.2,2505.8,3.99065734]
[1747553401362,7.457,2506.2,2505.9,3.99054118]
[1747553401532,7.457,2506.2,2506.1,3.99026375]
[1747553401853,4.75551309,2506.6,2506.1,3.99026375]
[1747553402067,14.913,2506.5,2506.1,3.99026375]
[1747553402216,7.457,2506.4,2506.2,3.99008072]
[1747553402557,7.457,2506.4,2506.1,3.9901785]
[1747553402955,7.457,2506.3,2506.1,3.9901785]
[1747553403466,4.75549889,2506.6,2506.1,3.9901785]
[1747553403687,7.457,2506.3,2506.1,3.9901785]
[1747553404475,7.457,2506.3,2506.2,3.99010454]
[1747553404672,0.766,2506.6,2506.1,3.99019201]
[1747553404843,7.457,2506.3,2506.1,4.75759201]
[1747553405734,4.75552029,2506.6,2506.1,4.75759201]
[1747553406270,14.912,2506.5,2506.1,4.75759201]
[1747553406869,0.766,2506.6,2506.2,3.99006595]
[1747553407174,7.457,2506.4,2506.2,3.99003107]
[1747553407372,7.457,2506.4,2506.1,5.63237686]
[1747553408391,7.457,2506.4,2506.2,3.9900469]
[1747553408754,7.457,2506.4,2506.1,5.63239899]
[1747553410957,7.457,2506.4,2506.1,1.64221117]
[1747553411162,7.457,2506.4,2506.0,3.99035132]
[1747553413103,7.457,2506.4,2506.1,3.99018717]
[1747553413875,0.766,2506.6,2506.1,3.99018717]
[1747553414082,7.457,2506.5,2506.1,3.99018909]
[1747553414291,0.766,2506.6,2505.9,8.7733]
[1747553414465,7.457,2506.5,2506.1,3.99018835]
[1747553420139,11.44662926,2506.5,2506.0,5.26674196]
[1747553421324,7.457,2506.5,2506.0,5.26674196]
[1747553421518,4.75555293,2506.6,2506.1,3.99018286]
[1747553421725,7.457,2506.4,2506.1,4.99320534]
[1747553423138,7.457,2506.4,2506.1,1.00302248]
[1747553423652,7.457,2506.4,2506.2,0.85604005]
[1747553424640,7.457,2506.4,2506.3,0.38046224]
[1747553424944,12.21338614,2506.4,2506.3,0.38046224]
[1747553425730,14.57899002,2506.4,2506.3,0.38046224]
[1747553432258,15.12899002,2506.4,2506.3,0.38046224]
[1747553432971,4.75872298,2506.0,2505.8,0.47557781]
[1747553433288,14.903,2505.9,2505.8,0.47557781]
[1747553433652,14.903,2505.9,2505.8,0.85537821]
[1747553434197,14.903,2505.9,2505.8,0.3798004]
[1747553436199,18.89358222,2505.9,2505.8,0.3798004]
[1747553436343,18.89358222,2505.9,2505.4,0.47557781]
[1747553436344,21.2588149,2505.9,2505.4,0.47557781]
[1747553436543,3.9907783,2505.8,2505.4,0.47557781]
[1747553436748,3.99091969,2505.7,2505.4,0.47557781]
[1747553437017,3.99091969,2505.7,2505.5,0.37928992]
[1747553437664,4.75921969,2505.7,2505.6,0.37928992]
[1747553438482,4.75921969,2505.7,2505.2,3.99158369]
[1747553438642,4.75921969,2505.7,2505.2,1.79013244]
[1747553438841,4.75921969,2505.7,2505.2,5.78177966]
[1747553439048,4.75921969,2505.7,2505.3,0.37903511]
[1747553439244,0.7683,2505.7,2505.3,4.37057058]
[1747553439549,4.54051707,2506.0,2505.5,3.9911155]
[1747553439782,0.8226,2506.1,2505.5,0.91807861]
[1747553440087,14.904,2505.9,2505.6,4.37009513]
[1747553440883,14.904,2505.9,2505.6,3.99106002]
[1747553441090,7.453,2505.9,2505.6,3.99106002]
[1747553441475,7.453,2505.9,2505.5,3.9911389]
[1747553441866,7.453,2505.9,2505.6,3.99101149]
[1747553443195,4.78812428,2505.8,2505.3,3.99145508]
[1747553443399,0.7973,2505.8,2505.3,3.99145508]
[1747553443568,0.7973,2505.8,2505.3,4.90014988]
[1747553443766,4.78806789,2505.8,2505.3,4.90014988]
[1747553444075,4.78806789,2505.8,2505.3,0.9086948]
[1747553444288,4.78806789,2505.8,2505.3,4.90018231]
[1747553447054,3.99092545,2505.7,2505.3,0.9086948]
[1747553447751,0.7973,2505.8,2505.4,3.99128127]
[1747553448088,0.7973,2505.8,2505.5,3.99121111]
[1747553448089,8.2473,2505.8,2505.5,3.99121111]
[1747553448308,8.2473,2505.8,2505.4,4.96131635]
[1747553449066,7.45,2505.8,2505.4,4.96131635]
[1747553449278,7.454,2505.7,2505.5,3.99121931]
[1747553449895,7.454,2505.7,2505.6,3.99106002]
[1747553450097,7.454,2505.7,2505.4,0.97000693]
[1747553450374,7.454,2505.7,2505.2,4.80006425]
[1747553451098,7.454,2505.7,2505.4,3.99134025]
[1747553451711,7.454,2505.7,2505.3,3.99147133]
[1747553454510,7.454,2505.7,2505.4,3.991331]
[1747553454729,7.454,2505.7,2505.5,3.99114936]
[1747553455828,4.78772965,2506.0,2505.5,3.99114936]
[1747553455975,7.449,2505.7,2505.4,3.99129376]
[1747553456916,7.449,2505.7,2505.3,3.99147583]
[1747553457313,8.2349,2505.7,2505.3,3.99147583]
[1747553460828,4.81738491,2505.6,2505.0,3.99192631]
[1747553461016,4.81729258,2505.6,2505.0,3.99191402]
[1747553461197,3.99124577,2505.5,2505.0,3.99191402]
[1747553461520,3.99124577,2505.5,2505.0,4.86965373]
[1747553463729,3.99124577,2505.5,2505.0,0.87773971]
[1747553463934,7.448,2505.4,2505.0,0.87773971]
[1747553464733,7.448,2505.4,2505.0,4.86972906]